fUST/lending_fUST_20240117
["ID","MTS","AMOUNT","RATE_DAILY","PERIOD"]
[311930739,1705505444157,-1059.34,0.00022465,2]
[311930740,1705505444166,-9238.11,0.00022465,2]
[311930743,1705505444175,-1539.66,0.00022465,2]
[311930744,1705505444184,-8389.48,0.00022465,2]
[311930747,1705505444194,-500.0,0.00022465,2]
[311930749,1705505444204,-500.0,0.00022465,2]
[311930751,1705505444213,-500.0,0.00022465,2]
[311930753,1705505444222,-1515.39,0.00022465,2]
[311930754,1705505444232,-500.0,0.00022465,2]
[311930756,1705505444242,-500.0,0.00022465,2]
[311930759,1705505444251,-1630.61,0.00022465,2]
[311930760,1705505444263,-500.0,0.00022465,2]
[311930763,1705505444274,-1305.39,0.00022465,2]
[311930765,1705505444283,-500.0,0.00022465,2]
[311930766,1705505444292,-500.0,0.00022465,2]
[311930768,1705505444302,-2020.73268005,0.00022465,2]
[311930771,1705505444321,-4682.44158881,0.00022465,2]
[311930795,1705505444532,-2000.88810436,0.00019805,2]
[311930798,1705505444542,-500.0,0.00021917,2]
[311930799,1705505444551,-10591.56573114,0.00022465,2]
[311930801,1705505444562,-3493.69,0.00022465,2]
[311930804,1705505444571,-4056.05,0.00022465,2]
[311930806,1705505444580,-5000.6,0.00022465,2]
[311930808,1705505444589,-1665.49,0.00022465,2]
[311930809,1705505444599,-274.15864809,0.00022601,2]
[311930811,1705505444608,-500.0,0.00022601,2]
[311930814,1705505444619,-500.0,0.00022601,2]
[311930816,1705505444629,-323.376962,0.00022602,2]
[311930818,1705505444638,-500.0,0.00022602,2]
[311930819,1705505444647,-500.0,0.00022602,2]
[311930821,1705505444656,-500.0,0.00022602,2]
[311930824,1705505444665,-500.0,0.00022602,2]
[311930833,1705505444742,-623.8,0.00022602,2]
[311930835,1705505444751,-500.0,0.00022602,2]
[311930837,1705505444760,-1294.5,0.00022602,2]
[311930839,1705505444772,-1733.0,0.00022602,2]
[311930841,1705505444783,-500.0,0.00022602,2]
[311930843,1705505444792,-500.0,0.00022602,2]
[311930845,1705505444801,-500.0,0.00022602,2]
[311930847,1705505444810,-500.0,0.00022602,2]
[311930849,1705505444819,-500.0,0.00022602,2]
[311930851,1705505444828,-500.0,0.00022602,2]
[311930853,1705505444837,-670.69,0.00022602,2]
[311930855,1705505444847,-500.0,0.00022602,2]
[311930857,1705505444856,-511.93,0.00022602,2]
[311930859,1705505444865,-760.31,0.00022602,2]
[311930861,1705505444874,-547.11872226,0.00022602,2]
[311930863,1705505444883,-500.0,0.00022602,2]
[311930865,1705505444893,-500.0,0.00022602,2]
[311930867,1705505444901,-500.0,0.00022602,2]
[311930869,1705505444911,-992.74,0.00022602,2]
[311930871,1705505444919,-500.0,0.00022602,2]
[311930873,1705505444929,-4009.51,0.00022602,2]
[311930875,1705505444939,-500.0,0.00022602,2]
[311930878,1705505444948,-1319.46,0.00022602,2]
[311930880,1705505444957,-154.1945427,0.00022602,2]
[311930882,1705505444970,-689.7754573,0.00022602,2]
[311930884,1705505444980,-1067.41,0.00022602,2]
[311930886,1705505444989,-500.0,0.00022602,2]
[311930888,1705505444998,-500.0,0.00022602,2]
[311930890,1705505445007,-187.27831083,0.00022602,2]
[311930913,1705505445219,-500.0,0.00021917,2]
[311930915,1705505445229,-501.62550056,0.00021917,2]
[311930917,1705505445238,-158.6,0.00022054,2]
[311930919,1705505445247,-500.0,0.00022054,2]
[311930921,1705505445256,-500.0,0.00022191,2]
[311930923,1705505445266,-500.0,0.00022328,2]
[311930925,1705505445275,-500.0,0.00022465,2]
[311930927,1705505445285,-159.06449941,0.00022602,2]
[311930929,1705505445297,-164.31246259,0.00022602,2]
[311930932,1705505445306,-312.72168917,0.00022602,2]
[311930933,1705505445315,-753.9,0.00022602,2]
[311930936,1705505445325,-988.65,0.00022602,2]
[311930938,1705505445334,-1059.34,0.00022602,2]
[311930939,1705505445342,-3392.74347266,0.00022602,2]
[311930995,1705505445784,-5845.36652734,0.00022602,2]
[311930998,1705505445793,-1539.66,0.00022602,2]
[311931001,1705505445802,-1200.67347266,0.00022602,2]
[311931058,1705505446192,-500.0,0.00021917,2]
[311931060,1705505446202,-7188.80652734,0.00022602,2]
[311931064,1705505446212,-500.0,0.00022602,2]
[311931068,1705505446221,-500.0,0.00022602,2]
[311931070,1705505446231,-500.0,0.00022602,2]
[311931073,1705505446240,-1515.39,0.00022602,2]
[311931076,1705505446250,-500.0,0.00022602,2]
[311931078,1705505446259,-500.0,0.00022602,2]
[311931080,1705505446269,-1630.61,0.00022602,2]
[311931082,1705505446278,-500.0,0.00022602,2]
[311931084,1705505446287,-1305.39,0.00022602,2]
[311931087,1705505446296,-500.0,0.00022602,2]
[311931090,1705505446306,-500.0,0.00022602,2]
[311931092,1705505446315,-17294.74,0.00022602,2]
[311931095,1705505446324,-3493.69,0.00022602,2]
[311931098,1705505446333,-4056.05,0.00022602,2]
[311931102,1705505446342,-5000.6,0.00022602,2]
[311931104,1705505446351,-1665.49,0.00022602,2]
[311931106,1705505446360,-500.0,0.00022602,2]
[311931109,1705505446370,-500.0,0.00022738,2]
[311931112,1705505446379,-500.0,0.00022738,2]
[311931116,1705505446389,-500.0,0.00022739,2]
[311931119,1705505446397,-500.0,0.00022739,2]
[311931122,1705505446406,-500.0,0.00022739,2]
[311931124,1705505446415,-623.8,0.00022739,2]
[311931127,1705505446424,-500.0,0.00022739,2]
[311931130,1705505446433,-1294.5,0.00022739,2]
[311931133,1705505446442,-1733.0,0.00022739,2]
[311931136,1705505446452,-500.0,0.00022739,2]
[311931139,1705505446460,-500.0,0.00022739,2]
[311931142,1705505446469,-500.0,0.00022739,2]
[311931145,1705505446478,-500.0,0.00022739,2]
[311931148,1705505446487,-500.0,0.00022739,2]
[311931151,1705505446496,-500.0,0.00022739,2]
[311931154,1705505446505,-670.69,0.00022739,2]
[311931156,1705505446515,-500.0,0.00022739,2]
[311931158,1705505446525,-511.93,0.00022739,2]
[311931160,1705505446534,-760.31,0.00022739,2]
[311931162,1705505446544,-500.0,0.00022739,2]
[311931164,1705505446553,-500.0,0.00022739,2]
[311931166,1705505446562,-500.0,0.00022739,2]
[311931168,1705505446570,-992.74,0.00022739,2]
[311931170,1705505446580,-500.0,0.00022739,2]
[311931172,1705505446589,-500.0,0.00022739,2]
[311931174,1705505446598,-1319.46,0.00022739,2]
[311931176,1705505446607,-843.97,0.00022739,2]
[311931185,1705505446678,-1067.41,0.00022739,2]
[311931187,1705505446689,-500.0,0.00022739,2]
[311931189,1705505446698,-500.0,0.00022739,2]
[311931191,1705505446708,-500.0,0.00022739,2]
[311931193,1705505446717,-753.9,0.00022739,2]
[311931195,1705505446726,-988.65,0.00022739,2]
[311931197,1705505446739,-1059.34,0.00022739,2]
[311931199,1705505446748,-9238.11,0.00022739,2]
[311931201,1705505446757,-1539.66,0.00022739,2]
[311931203,1705505446768,-8389.48,0.00022739,2]
[311931205,1705505446776,-500.0,0.00022739,2]
[311931207,1705505446786,-500.0,0.00022739,2]
[311931209,1705505446795,-500.0,0.00022739,2]
[311931211,1705505446805,-1515.39,0.00022739,2]
[311931213,1705505446814,-500.0,0.00022739,2]
[311931215,1705505446823,-500.0,0.00022739,2]
[311931217,1705505446832,-1630.61,0.00022739,2]
[311931219,1705505446842,-500.0,0.00022739,2]
[311931221,1705505446852,-1305.39,0.00022739,2]
[311931223,1705505446861,-500.0,0.00022739,2]
[311931225,1705505446870,-500.0,0.00022739,2]
[311931227,1705505446879,-17294.74,0.00022739,2]
[311931229,1705505446888,-3493.69,0.00022739,2]
[311931231,1705505446896,-4056.05,0.00022739,2]
[311931233,1705505446905,-5000.6,0.00022739,2]
[311931235,1705505446914,-1665.49,0.00022739,2]
[311931237,1705505446923,-500.0,0.00022739,2]
[311931239,1705505446933,-617.75,0.00022875,2]
[311931241,1705505446942,-500.0,0.00022876,2]
[311931243,1705505446951,-500.0,0.00022876,2]
[311931245,1705505446960,-500.0,0.00022876,2]
[311931247,1705505446970,-623.8,0.00022876,2]
[311931249,1705505446979,-500.0,0.00022876,2]
[311931251,1705505446989,-1294.5,0.00022876,2]
[311931253,1705505446998,-1733.0,0.00022876,2]
[311931255,1705505447007,-500.0,0.00022876,2]
[311931257,1705505447017,-500.0,0.00022876,2]
[311931259,1705505447026,-500.0,0.00022876,2]
[311931261,1705505447035,-500.0,0.00022876,2]
[311931263,1705505447045,-500.0,0.00022876,2]
[311931264,1705505447054,-500.0,0.00022876,2]
[311931266,1705505447065,-670.69,0.00022876,2]
[311931268,1705505447074,-500.0,0.00022876,2]
[311931270,1705505447083,-511.93,0.00022876,2]
[311931272,1705505447093,-760.31,0.00022876,2]
[311931274,1705505447102,-235.84364609,0.00022876,2]
[311931276,1705505447111,-500.0,0.00022876,2]
[311931278,1705505447121,-500.0,0.00022876,2]
[311931280,1705505447130,-992.74,0.00022876,2]
[311931282,1705505447140,-500.0,0.00022876,2]
[311931284,1705505447151,-500.0,0.00022876,2]
[311931286,1705505447160,-1319.46,0.00022876,2]
[311931288,1705505447170,-843.97,0.00022876,2]
[311931290,1705505447181,-1067.41,0.00022876,2]
[311931292,1705505447190,-500.0,0.00022876,2]
[311931294,1705505447200,-500.0,0.00022876,2]
[311931296,1705505447211,-500.0,0.00022876,2]
[311931298,1705505447220,-753.9,0.00022876,2]
[311931300,1705505447230,-988.65,0.00022876,2]
[311931302,1705505447239,-1059.34,0.00022876,2]
[311931304,1705505447248,-9238.11,0.00022876,2]
[311931306,1705505447257,-1539.66,0.00022876,2]
[311931308,1705505447268,-8389.48,0.00022876,2]
[311931310,1705505447279,-500.0,0.00022876,2]
[311931312,1705505447288,-500.0,0.00022876,2]
[311931314,1705505447297,-608.67528292,0.00022876,2]
[311931316,1705505447306,-1515.39,0.00022876,2]
[311931318,1705505447316,-500.0,0.00022876,2]
[311931320,1705505447325,-500.0,0.00022876,2]
[311931322,1705505447335,-1630.61,0.00022876,2]
[311931324,1705505447344,-500.0,0.00022876,2]
[311931326,1705505447354,-1305.39,0.00022876,2]
[311931328,1705505447363,-500.0,0.00022876,2]
[311931330,1705505447372,-500.0,0.00022876,2]
[311931332,1705505447382,-2579.38364664,0.00022876,2]
[311931446,1705505454727,-335.8983774,0.00019033,2]
[311931447,1705505454856,-6.85506893,0.00019033,2]
[311931448,1705505461432,-302.69583358,0.00019033,2]
[311931449,1705505461559,-6.17746599,0.00019033,2]
[311931450,1705505520631,-12000.0,0.00019033,2]
[311931451,1705505520825,-12000.0,0.00019033,2]
[311931452,1705505520929,-12000.0,0.00019033,2]
[311931453,1705505521063,-12000.0,0.00019033,2]
[311931454,1705505521213,-33.55293437,0.00019033,2]
[311931455,1705505709395,-263.2863002,0.00019707,2]
[311931456,1705505709526,-5.3731898,0.00019707,2]
[311931458,1705506027271,-12000.0,0.00019606,2]
[311931459,1705506027418,-12000.0,0.00019606,2]
[311931460,1705506027575,-900.0,0.00019606,2]
[311931461,1705506486460,-6904.04195127,0.00019572,2]
[311931462,1705506486604,-140.89881533,0.00019572,2]
[311931533,1705506638505,-154.95351395,0.00020453,4]
[311931534,1705506638515,-1638.14480049,0.00020453,2]
[311931535,1705506638525,-1638.14480049,0.00020453,2]
[311931536,1705506638534,-1638.14480049,0.00020453,2]
[311931537,1705506638544,-2995.12470388,0.00020454,2]
[311931538,1705506638554,-1196.71363385,0.00020456,2]
[311931539,1705506638563,-2000.88810436,0.00020456,2]
[311931540,1705506638572,-1561.37209054,0.00020502,2]
[311931541,1705506638582,-1321.50022865,0.00020715,2]
[311931542,1705506638593,-50000.0,0.00020716,2]
[311931543,1705506638603,-1815.68321298,0.00021,2]
[311931544,1705506638613,-327.18048,0.00021,2]
[311931545,1705506638622,-181.35131347,0.000211,2]
[311931546,1705506638631,-6640.52,0.00021866,3]
[311931547,1705506638641,-599.71741699,0.00021916,2]
[311931548,1705506638650,-18649.29404478,0.00021916,2]
[311931549,1705506638660,-500.0,0.00021917,2]
[311931550,1705506638670,-500.0,0.00021917,2]
[311931551,1705506638679,-500.0,0.00021917,2]
[311931552,1705506638689,-500.0,0.00021917,2]
[311931553,1705506638698,-500.0,0.00021917,2]
[311931554,1705506638708,-500.0,0.00021917,2]
[311931555,1705506638717,-500.0,0.00021917,2]
[311931556,1705506638726,-500.0,0.00021917,2]
[311931557,1705506638735,-500.0,0.00021917,2]
[311931558,1705506638745,-500.0,0.00021917,2]
[311931559,1705506638754,-267.81115023,0.00021917,2]
[311931560,1705506638763,-500.0,0.00021917,2]
[311931561,1705506638773,-500.0,0.00021917,2]
[311931562,1705506638782,-535.84483329,0.00021917,2]
[311931563,1705506638791,-500.0,0.00021917,2]
[311931564,1705506638801,-500.0,0.00021917,2]
[311931565,1705506638810,-500.0,0.00021917,2]
[311931566,1705506638820,-500.0,0.00021917,2]
[311931567,1705506638829,-429.95876673,0.00021917,2]
[311931568,1705506638840,-540.7180897,0.00021917,2]
[311931569,1705506638849,-500.0,0.00021917,2]
[311931570,1705506638858,-500.0,0.00021917,2]
[311931571,1705506638867,-1104.91,0.00021917,2]
[311931572,1705506638875,-500.0,0.00021917,2]
[311931573,1705506638884,-500.0,0.00021917,2]
[311931574,1705506638894,-500.0,0.00021917,2]
[311931575,1705506638903,-500.0,0.00021917,2]
[311931576,1705506638912,-1487.49,0.00021917,2]
[311931577,1705506638921,-505.28582934,0.00021917,2]
[311931578,1705506638932,-500.0,0.00021917,2]
[311931579,1705506638942,-770.1,0.00021917,2]
[311931580,1705506638951,-500.0,0.00021917,2]
[311931581,1705506638960,-505.14162514,0.00021917,2]
[311931582,1705506638970,-500.0,0.00021917,2]
[311931583,1705506638978,-500.0,0.00021917,2]
[311931584,1705506638987,-500.0,0.00021917,2]
[311931585,1705506638996,-500.0,0.00021917,2]
[311931586,1705506639005,-467.17315,0.00021917,2]
[311931587,1705506639014,-500.0,0.00021917,2]
[311931588,1705506639024,-500.0,0.00021917,2]
[311931589,1705506639033,-500.0,0.00021917,2]
[311931590,1705506639042,-500.0,0.00021917,2]
[311931591,1705506639051,-500.0,0.00021917,2]
[311931592,1705506639060,-500.0,0.00021917,2]
[311931593,1705506639069,-500.0,0.00021917,2]
[311931594,1705506639079,-500.0,0.00021917,2]
[311931595,1705506639088,-500.0,0.00021917,2]
[311931596,1705506639099,-500.0,0.00021917,2]
[311931597,1705506639110,-500.0,0.00021917,2]
[311931598,1705506639120,-500.0,0.00021917,2]
[311931599,1705506639129,-600.83,0.00021917,2]
[311931600,1705506639139,-500.0,0.00021917,2]
[311931601,1705506639150,-500.0,0.00021917,2]
[311931602,1705506639159,-587.34476944,0.00021917,2]
[311931603,1705506639169,-500.0,0.00021917,2]
[311931604,1705506639179,-500.0,0.00021917,2]
[311931605,1705506639188,-500.0,0.00021917,2]
[311931606,1705506639198,-500.0,0.00021917,2]
[311931607,1705506639207,-359.50905865,0.00021917,2]
[311931608,1705506639217,-500.0,0.00021917,2]
[311931609,1705506639227,-500.0,0.00021917,2]
[311931610,1705506639236,-500.0,0.00021917,2]
[311931611,1705506639245,-500.0,0.00021917,2]
[311931612,1705506639255,-234.02972932,0.00021917,2]
[311931613,1705506639265,-780.69,0.00021917,2]
[311931614,1705506639274,-500.0,0.00021917,2]
[311931615,1705506639283,-500.0,0.00021917,2]
[311931616,1705506639293,-500.0,0.00021917,2]
[311931617,1705506639303,-500.0,0.00021917,2]
[311931618,1705506639314,-500.0,0.00021917,2]
[311931619,1705506639324,-500.0,0.00021917,2]
[311931620,1705506639333,-500.0,0.00021917,2]
[311931621,1705506639344,-500.0,0.00021917,2]
[311931622,1705506639353,-500.0,0.00021917,2]
[311931623,1705506639362,-500.0,0.00021917,2]
[311931624,1705506639372,-500.0,0.00021917,2]
[311931625,1705506639384,-500.0,0.00021917,2]
[311931626,1705506639393,-500.0,0.00021917,2]
[311931627,1705506639406,-500.0,0.00021917,2]
[311931628,1705506639415,-500.0,0.00021917,2]
[311931629,1705506639424,-500.0,0.00021917,2]
[311931630,1705506639435,-346.01787817,0.00021917,2]
[311931631,1705506639445,-214.55184681,0.00021917,2]
[311931632,1705506639453,-500.0,0.00021917,2]
[311931633,1705506639462,-500.0,0.00021917,2]
[311931634,1705506639471,-500.0,0.00021917,2]
[311931635,1705506639480,-456.79877671,0.00021917,2]
[311931636,1705506639490,-500.0,0.00021917,2]
[311931637,1705506639501,-500.0,0.00021917,2]
[311931638,1705506639511,-500.0,0.00021917,2]
[311931639,1705506639520,-500.0,0.00021917,2]
[311931640,1705506639530,-500.0,0.00021917,2]
[311931641,1705506639541,-500.0,0.00021917,2]
[311931642,1705506639550,-500.0,0.00021917,5]
[311931643,1705506639560,-500.0,0.00021917,2]
[311931644,1705506639569,-500.0,0.00021917,2]
[311931645,1705506639579,-500.0,0.00021917,2]
[311931646,1705506639588,-952.23,0.00021917,2]
[311931647,1705506639598,-500.0,0.00021917,2]
[311931648,1705506639609,-500.0,0.00021917,2]
[311931649,1705506639620,-500.0,0.00021917,2]
[311931650,1705506639629,-1178.2,0.00021917,2]
[311931651,1705506639639,-643.96,0.00021917,2]
[311931652,1705506639648,-500.0,0.00021917,2]
[311931653,1705506639657,-500.0,0.00021917,2]
[311931654,1705506639665,-500.0,0.00021917,2]
[311931655,1705506639676,-500.0,0.00021917,2]
[311931656,1705506639687,-500.0,0.00021917,2]
[311931657,1705506639699,-948.99,0.00021917,2]
[311931658,1705506639710,-500.0,0.00021917,2]
[311931659,1705506639720,-500.0,0.00021917,2]
[311931660,1705506639731,-500.0,0.00021917,2]
[311931661,1705506639740,-8517.88,0.00021917,2]
[311931662,1705506639749,-500.0,0.00021917,2]
[311931663,1705506639758,-500.0,0.00021917,2]
[311931664,1705506639767,-500.0,0.00021917,2]
[311931665,1705506639776,-500.0,0.00021917,2]
[311931666,1705506639785,-885.67,0.00021917,2]
[311931667,1705506639794,-500.0,0.00021917,2]
[311931668,1705506639805,-500.0,0.00021917,2]
[311931669,1705506639815,-500.0,0.00021917,2]
[311931670,1705506639825,-500.0,0.00021917,2]
[311931671,1705506639835,-500.0,0.00021917,2]
[311931672,1705506639846,-500.0,0.00021917,2]
[311931673,1705506639856,-500.0,0.00021917,2]
[311931674,1705506639865,-500.0,0.00021917,2]
[311931675,1705506639875,-500.0,0.00021917,2]
[311931676,1705506639884,-1383.71,0.00021917,2]
[311931677,1705506639894,-500.0,0.00021917,2]
[311931678,1705506639903,-500.0,0.00021917,2]
[311931679,1705506639912,-500.0,0.00021917,2]
[311931680,1705506639922,-230.02217805,0.00021917,2]
[311931681,1705506639932,-500.0,0.00021917,2]
[311931682,1705506639942,-500.0,0.00021917,2]
[311931683,1705506640025,-500.0,0.00021917,2]
[311931684,1705506640035,-8232.73,0.00021917,2]
[311931685,1705506640045,-500.0,0.00021917,2]
[311931686,1705506640054,-500.0,0.00021917,2]
[311931687,1705506640063,-506.24435026,0.00021917,2]
[311931688,1705506640072,-500.0,0.00021917,2]
[311931689,1705506640081,-1068.65134143,0.00021917,2]
[311931690,1705506640092,-209.73633126,0.00021917,2]
[311931691,1705506640101,-500.0,0.00021917,2]
[311931692,1705506640110,-500.0,0.00021917,2]
[311931693,1705506640119,-500.0,0.00021917,2]
[311931694,1705506640128,-1350.74,0.00021917,2]
[311931695,1705506640137,-500.0,0.00021917,2]
[311931696,1705506640146,-500.0,0.00021917,2]
[311931697,1705506640155,-500.0,0.00021917,2]
[311931698,1705506640164,-500.0,0.00021917,2]
[311931699,1705506640173,-500.0,0.00021917,2]
[311931700,1705506640182,-500.0,0.00021917,2]
[311931701,1705506640191,-500.0,0.00021917,2]
[311931702,1705506640200,-500.0,0.00021917,2]
[311931703,1705506640209,-500.0,0.00021917,2]
[311931704,1705506640218,-1205.11,0.00021917,2]
[311931705,1705506640227,-500.0,0.00021917,2]
[311931706,1705506640236,-1448.34,0.00021917,2]
[311931707,1705506640245,-3916.46,0.00021917,2]
[311931708,1705506640254,-500.0,0.00021917,2]
[311931709,1705506640263,-4456.12,0.00021917,2]
[311931710,1705506640273,-14610.41,0.00021917,2]
[311931711,1705506640282,-500.0,0.00021917,2]
[311931712,1705506640291,-500.0,0.00021917,2]
[311931713,1705506640300,-3056.7,0.00021917,2]
[311931715,1705506640309,-201.66657356,0.00021917,2]
[311931717,1705506640317,-1509.26,0.00021917,2]
[311931719,1705506640326,-500.0,0.00021917,2]
[311931721,1705506640334,-500.0,0.00021917,2]
[311931723,1705506640345,-500.0,0.00021917,2]
[311931724,1705506640354,-500.0,0.00021917,2]
[311931725,1705506640362,-500.0,0.00021917,2]
[311931726,1705506640371,-506.80923371,0.00021917,2]
[311931727,1705506640381,-500.0,0.00021917,2]
[311931728,1705506640392,-558.41,0.00021917,2]
[311931729,1705506640402,-500.0,0.00021917,2]
[311931730,1705506640411,-3767.71,0.00021917,2]
[311931731,1705506640422,-500.0,0.00021917,2]
[311931732,1705506640431,-500.0,0.00021917,2]
[311931733,1705506640439,-500.0,0.00021917,2]
[311931734,1705506640449,-500.0,0.00021917,2]
[311931735,1705506640458,-500.0,0.00021917,2]
[311931736,1705506640467,-500.0,0.00021917,2]
[311931737,1705506640477,-500.0,0.00021917,2]
[311931738,1705506640486,-500.0,0.00021917,2]
[311931740,1705506640495,-753.08,0.00021917,2]
[311931742,1705506640504,-166.666666,0.00021918,2]
[311931743,1705506640513,-2897.21205262,0.00021962,2]
[311931744,1705506640522,-2058.24964779,0.00021962,2]
[311931745,1705506640531,-5000.0,0.00021962,2]
[311931746,1705506640541,-5000.0,0.00021962,2]
[311931747,1705506640550,-11997.38201098,0.00021962,2]
[311931748,1705506640559,-5000.0,0.00021962,2]
[311931749,1705506640568,-50000.0,0.00021962,2]
[311931750,1705506640577,-50000.0,0.00021962,2]
[311931751,1705506640586,-50000.0,0.00021962,2]
[311931752,1705506640597,-50000.0,0.00021962,2]
[311931753,1705506640606,-55048.58609341,0.00021962,2]
[311931754,1705506640615,-293.1976279,0.00022,4]
[311931755,1705506640624,-3955.54830897,0.00022,2]
[311931756,1705506640633,-425.53656097,0.00022,2]
[311931757,1705506640642,-154.95351395,0.00022,2]
[311931758,1705506640651,-647.20940743,0.0002202,2]
[311931759,1705506640661,-500.0,0.00022052,2]
[311931760,1705506640670,-2030.90555518,0.00022053,2]
[311931761,1705506640679,-2819.1294409,0.00022053,2]
[311931762,1705506640688,-155.1836219,0.00022053,2]
[311931763,1705506640697,-500.0,0.00022053,2]
[311931764,1705506640707,-500.0,0.00022054,2]
[311931765,1705506640716,-500.0,0.00022054,2]
[311931766,1705506640725,-500.0,0.00022054,2]
[311931767,1705506640734,-500.0,0.00022054,2]
[311931768,1705506640743,-500.0,0.00022054,2]
[311931769,1705506640752,-500.0,0.00022054,2]
[311931770,1705506640761,-500.0,0.00022054,2]
[311931771,1705506640770,-500.0,0.00022054,2]
[311931772,1705506640779,-500.0,0.00022054,2]
[311931773,1705506640788,-1104.91,0.00022054,2]
[311931774,1705506640797,-500.0,0.00022054,2]
[311931775,1705506640805,-1487.49,0.00022054,2]
[311931776,1705506640814,-770.1,0.00022054,2]
[311931777,1705506640823,-500.0,0.00022054,2]
[311931778,1705506640831,-500.0,0.00022054,2]
[311931779,1705506640842,-389.81459753,0.00022054,2]
[311931780,1705506640851,-610.97756718,0.00022054,2]
[311931781,1705506640860,-500.0,0.00022054,2]
[311931782,1705506640869,-500.0,0.00022054,2]
[311931783,1705506640878,-500.0,0.00022054,2]
[311931784,1705506640887,-500.0,0.00022054,2]
[311931785,1705506640896,-500.0,0.00022054,2]
[311931786,1705506640905,-500.0,0.00022054,2]
[311931787,1705506640915,-500.0,0.00022054,2]
[311931788,1705506640924,-500.0,0.00022054,2]
[311931789,1705506640933,-600.83,0.00022054,2]
[311931790,1705506640942,-500.0,0.00022054,2]
[311931791,1705506640951,-500.0,0.00022054,2]
[311931792,1705506640960,-375.57578081,0.00022054,2]
[311931793,1705506640969,-500.0,0.00022054,2]
[311931794,1705506640978,-500.0,0.00022054,2]
[311931795,1705506640986,-780.69,0.00022054,2]
[311931796,1705506640996,-500.0,0.00022054,2]
[311931797,1705506641005,-500.0,0.00022054,2]
[311931798,1705506641014,-500.0,0.00022054,2]
[311931799,1705506641023,-500.0,0.00022054,2]
[311931800,1705506641032,-500.0,0.00022054,2]
[311931801,1705506641041,-500.0,0.00022054,2]
[311931802,1705506641050,-500.0,0.00022054,2]
[311931803,1705506641059,-500.0,0.00022054,2]
[311931804,1705506641068,-500.0,0.00022054,2]
[311931805,1705506641077,-500.0,0.00022054,2]
[311931806,1705506641086,-500.0,0.00022054,2]
[311931807,1705506641096,-500.0,0.00022054,2]
[311931808,1705506641105,-500.0,0.00022054,2]
[311931809,1705506641114,-500.0,0.00022054,2]
[311931810,1705506641122,-500.0,0.00022054,2]
[311931811,1705506641131,-500.0,0.00022054,2]
[311931812,1705506641140,-500.0,0.00022054,2]
[311931813,1705506641149,-500.0,0.00022054,2]
[311931814,1705506641159,-500.0,0.00022054,2]
[311931815,1705506641167,-952.23,0.00022054,2]
[311931816,1705506641176,-500.0,0.00022054,2]
[311931817,1705506641185,-500.0,0.00022054,2]
[311931818,1705506641194,-1178.2,0.00022054,2]
[311931819,1705506641203,-643.96,0.00022054,2]
[311931820,1705506641212,-500.0,0.00022054,2]
[311931821,1705506641221,-500.0,0.00022054,2]
[311931822,1705506641230,-500.0,0.00022054,2]
[311931823,1705506641239,-506.36136308,0.00022054,2]
[311931824,1705506641249,-500.0,0.00022054,2]